[Event "Late-Titled-Tuesday-Blitz-January-16-2024"]
[Site "Chess.com"]
[Date "2024.01.16"]
[Round "11"]
[White "xakevicius91"]
[Black "NovakRatko"]
[Result "1-0"]
[WhiteElo "2553"]
[BlackElo "2342"]
[TimeControl "180+1"]
[EndTime "16:07:01 PST"]
[Termination "xakevicius91 won on time"]

1. e4 {[%clk 0:03:00.9]} 1... d5 {[%clk 0:02:20.1]} 2. exd5 {[%clk 0:02:57.8]}
2... c6 {[%clk 0:02:20.2]} 3. dxc6 {[%clk 0:02:56.4]} 3... Nxc6 {[%clk
0:02:21.1]} 4. Nc3 {[%clk 0:02:50]} 4... e5 {[%clk 0:02:20.2]} 5. Bb5 {[%clk
0:02:47.1]} 5... Bd6 {[%clk 0:02:20.1]} 6. Nge2 {[%clk 0:02:46.8]} 6... Ne7
{[%clk 0:02:20]} 7. O-O {[%clk 0:02:46.9]} 7... Bg4 {[%clk 0:02:18.7]} 8. f3
{[%clk 0:02:41.9]} 8... Bh5 {[%clk 0:02:13.5]} 9. d3 {[%clk 0:02:41.8]} 9...
Qb6+ {[%clk 0:02:09.7]} 10. Kh1 {[%clk 0:02:40.6]} 10... O-O {[%clk 0:02:10.4]}
11. Bc4 {[%clk 0:02:33.9]} 11... Kh8 {[%clk 0:02:09.9]} 12. Nd5 {[%clk
0:02:31.6]} 12... Nxd5 {[%clk 0:02:07.2]} 13. Bxd5 {[%clk 0:02:32.5]} 13... Ne7
{[%clk 0:02:06.4]} 14. Nc3 {[%clk 0:02:30.4]} 14... Nxd5 {[%clk 0:01:46.4]} 15.
Nxd5 {[%clk 0:02:31.3]} 15... Qc6 {[%clk 0:01:44.9]} 16. Nc3 {[%clk 0:02:28.1]}
16... f5 {[%clk 0:01:43.6]} 17. Qe1 {[%clk 0:02:24.3]} 17... b5 {[%clk
0:01:35.7]} 18. a3 {[%clk 0:02:23.4]} 18... a5 {[%clk 0:01:35.2]} 19. Qf2 {[%clk
0:01:46.8]} 19... Rac8 {[%clk 0:01:29.8]} 20. Qh4 {[%clk 0:01:37.5]} 20... Bg6
{[%clk 0:01:19.2]} 21. Rf2 {[%clk 0:01:20]} 21... b4 {[%clk 0:01:16.6]} 22. axb4
{[%clk 0:01:20.9]} 22... axb4 {[%clk 0:01:16.2]} 23. Nd1 {[%clk 0:01:21.1]}
23... e4 {[%clk 0:01:13.7]} 24. dxe4 {[%clk 0:01:10.9]} 24... fxe4 {[%clk
0:01:12.9]} 25. f4 {[%clk 0:01:10.9]} 25... Bc5 {[%clk 0:01:05.9]} 26. Be3
{[%clk 0:01:10.4]} 26... Bd6 {[%clk 0:00:26.9]} 27. Bd4 {[%clk 0:01:06.2]} 27...
e3 {[%clk 0:00:19.8]} 28. Nxe3 {[%clk 0:01:02.9]} 28... Qe4 {[%clk 0:00:17.8]}
29. c3 {[%clk 0:00:55.4]} 29... bxc3 {[%clk 0:00:17.2]} 30. bxc3 {[%clk
0:00:55.3]} 30... Rxf4 {[%clk 0:00:17.1]} 31. Rxf4 {[%clk 0:00:52.4]} 31... Qxf4
{[%clk 0:00:17]} 32. Qxf4 {[%clk 0:00:49]} 32... Bxf4 {[%clk 0:00:17.9]} 33. Nd5
{[%clk 0:00:40.6]} 33... Bd6 {[%clk 0:00:15.2]} 34. Re1 {[%clk 0:00:36.4]} 34...
Bf8 {[%clk 0:00:14.4]} 35. Nf4 {[%clk 0:00:34.3]} 35... Bf5 {[%clk 0:00:13.2]}
36. h3 {[%clk 0:00:31.9]} 36... Kg8 {[%clk 0:00:13.4]} 37. g4 {[%clk 0:00:31.5]}
37... Bc2 {[%clk 0:00:12.8]} 38. Kg1 {[%clk 0:00:26.8]} 38... Bb3 {[%clk
0:00:12.5]} 39. Kf2 {[%clk 0:00:26.7]} 39... Bc5 {[%clk 0:00:07.2]} 40. Bxc5
{[%clk 0:00:21.5]} 40... Rxc5 {[%clk 0:00:07.2]} 41. Re3 {[%clk 0:00:21.8]}
41... g5 {[%clk 0:00:04]} 42. Ne2 {[%clk 0:00:21.7]} 42... Ra5 {[%clk 0:00:02]}
43. Nd4 {[%clk 0:00:21.8]} 43... Ra2+ {[%clk 0:00:01.7]} 44. Ke1 {[%clk
0:00:19.4]} 44... Bc4 {[%clk 0:00:01.4]} 45. Nf3 {[%clk 0:00:17.3]} 45... h6
{[%clk 0:00:01.2]} 46. Ne5 {[%clk 0:00:17.4]} 1-0

[Event "Late-Titled-Tuesday-Blitz-January-16-2024"]
[Site "Chess.com"]
[Date "2024.01.16"]
[Round "11"]
[White "GMJustin"]
[Black "StellarChess"]
[Result "0-1"]
[WhiteElo "2345"]
[BlackElo "2552"]
[TimeControl "180+1"]
[EndTime "16:07:02 PST"]
[Termination "StellarChess won on time"]

1. e4 {[%clk 0:02:02]} 1... g6 {[%clk 0:02:44.1]} 2. d4 {[%clk 0:02:01.1]} 2...
Bg7 {[%clk 0:02:44.1]} 3. Nc3 {[%clk 0:02:01.2]} 3... d6 {[%clk 0:02:44.2]} 4.
Be3 {[%clk 0:02:00.8]} 4... a6 {[%clk 0:02:44.7]} 5. g4 {[%clk 0:01:57.3]} 5...
b5 {[%clk 0:02:38.1]} 6. h4 {[%clk 0:01:50.4]} 6... h6 {[%clk 0:02:30.1]} 7. h5
{[%clk 0:01:47.3]} 7... g5 {[%clk 0:02:30.2]} 8. f4 {[%clk 0:01:30.7]} 8... gxf4
{[%clk 0:02:27.5]} 9. Bxf4 {[%clk 0:01:31.3]} 9... Bb7 {[%clk 0:02:28.4]} 10.
Bg2 {[%clk 0:01:25.6]} 10... Nf6 {[%clk 0:02:25.9]} 11. Qe2 {[%clk 0:01:17.4]}
11... b4 {[%clk 0:02:22.2]} 12. e5 {[%clk 0:01:08.4]} 12... Nfd7 {[%clk
0:01:07.9]} 13. Bxb7 {[%clk 0:01:03.8]} 13... Ra7 {[%clk 0:01:05.2]} 14. exd6
{[%clk 0:00:42.5]} 14... cxd6 {[%clk 0:00:57.1]} 15. Ne4 {[%clk 0:00:40.8]}
15... O-O {[%clk 0:00:52]} 16. Bd5 {[%clk 0:00:37.9]} 16... Bxd4 {[%clk
0:00:46.5]} 17. O-O-O {[%clk 0:00:37]} 17... Bg7 {[%clk 0:00:46.5]} 18. Qe3
{[%clk 0:00:36.8]} 18... e6 {[%clk 0:00:36.1]} 19. Qxa7 {[%clk 0:00:31.2]} 19...
exd5 {[%clk 0:00:35.8]} 20. Nxd6 {[%clk 0:00:27.1]} 20... Qf6 {[%clk 0:00:33.2]}
21. Qd4 {[%clk 0:00:07.9]} 21... Qxd4 {[%clk 0:00:31.4]} 22. Rxd4 {[%clk
0:00:07.7]} 22... Bxd4 {[%clk 0:00:32.3]} 23. Bxh6 {[%clk 0:00:05.9]} 23... Re8
{[%clk 0:00:32.8]} 24. Nf3 {[%clk 0:00:05.6]} 24... Be3+ {[%clk 0:00:30.7]} 25.
Bxe3 {[%clk 0:00:05]} 25... Rxe3 {[%clk 0:00:31.6]} 26. Rf1 {[%clk 0:00:04.6]}
26... Nc6 {[%clk 0:00:30.3]} 27. Nf5 {[%clk 0:00:04.6]} 27... Re2 {[%clk
0:00:26.8]} 28. g5 {[%clk 0:00:04.3]} 28... Rg2 {[%clk 0:00:21.1]} 29. Nh6+
{[%clk 0:00:03]} 29... Kg7 {[%clk 0:00:18.6]} 30. Nxf7 {[%clk 0:00:03.3]} 30...
Nc5 {[%clk 0:00:15.1]} 31. g6 {[%clk 0:00:03.3]} 31... Ne4 {[%clk 0:00:14.8]}
32. h6+ {[%clk 0:00:03.6]} 32... Kxg6 {[%clk 0:00:14.7]} 33. Nh4+ {[%clk
0:00:03.5]} 33... Kh7 {[%clk 0:00:12.3]} 34. Nxg2 {[%clk 0:00:04.1]} 34... Nd4
{[%clk 0:00:13.2]} 35. Ne3 {[%clk 0:00:04.1]} 35... Ne2+ {[%clk 0:00:13.3]} 36.
Kd1 {[%clk 0:00:03.2]} 36... N2g3 {[%clk 0:00:14.2]} 37. Rg1 {[%clk 0:00:03.4]}
37... Kg6 {[%clk 0:00:13.2]} 38. Ne5+ {[%clk 0:00:03.3]} 38... Kxh6 {[%clk
0:00:13.5]} 39. N5g4+ {[%clk 0:00:03.4]} 39... Kg5 {[%clk 0:00:13.8]} 40. Ne5
{[%clk 0:00:02.8]} 40... Kf4 {[%clk 0:00:14.7]} 41. Nxd5+ {[%clk 0:00:01.7]}
41... Kxe5 {[%clk 0:00:13.8]} 42. Nxb4 {[%clk 0:00:02.3]} 42... a5 {[%clk
0:00:12.2]} 43. Nd3+ {[%clk 0:00:02.9]} 43... Kd4 {[%clk 0:00:13]} 44. b3 {[%clk
0:00:02.4]} 44... Ke3 {[%clk 0:00:13.9]} 45. Ne5 {[%clk 0:00:01.3]} 45... Ne2
{[%clk 0:00:14.8]} 0-1

[Event "Late-Titled-Tuesday-Blitz-January-16-2024"]
[Site "Chess.com"]
[Date "2024.01.16"]
[Round "11"]
[White "Grischuk"]
[Black "rasmussvane"]
[Result "1-0"]
[WhiteElo "3080"]
[BlackElo "2983"]
[TimeControl "180+1"]
[EndTime "16:07:07 PST"]
[Termination "Grischuk won on time"]

1. d4 {[%clk 0:03:00.9]} 1... d5 {[%clk 0:02:57.7]} 2. c4 {[%clk 0:03:01.1]}
2... e6 {[%clk 0:02:58.1]} 3. Nc3 {[%clk 0:03:00.6]} 3... h6 {[%clk 0:02:57.9]}
4. cxd5 {[%clk 0:02:52.3]} 4... exd5 {[%clk 0:02:58.8]} 5. Bf4 {[%clk
0:02:52.5]} 5... c6 {[%clk 0:02:57.7]} 6. e3 {[%clk 0:02:46.2]} 6... Bd6 {[%clk
0:02:57.9]} 7. Bxd6 {[%clk 0:02:38.9]} 7... Qxd6 {[%clk 0:02:58.8]} 8. Bd3
{[%clk 0:02:39.2]} 8... Nf6 {[%clk 0:02:55.2]} 9. Nge2 {[%clk 0:02:30.7]} 9...
O-O {[%clk 0:02:55]} 10. f3 {[%clk 0:02:27.3]} 10... c5 {[%clk 0:02:51.1]} 11.
Qd2 {[%clk 0:02:23.6]} 11... Nc6 {[%clk 0:02:48.7]} 12. O-O {[%clk 0:02:22.5]}
12... cxd4 {[%clk 0:02:43.5]} 13. exd4 {[%clk 0:02:23.4]} 13... Re8 {[%clk
0:02:31.8]} 14. Rac1 {[%clk 0:02:21.4]} 14... Be6 {[%clk 0:02:23.8]} 15. a3
{[%clk 0:02:16.1]} 15... Rac8 {[%clk 0:02:23.4]} 16. Nb5 {[%clk 0:02:10.4]}
16... Qd7 {[%clk 0:02:14.3]} 17. Qf4 {[%clk 0:02:08.3]} 17... Red8 {[%clk
0:02:13.8]} 18. g4 {[%clk 0:02:04.7]} 18... a6 {[%clk 0:02:13.3]} 19. Nbc3
{[%clk 0:02:04.6]} 19... Ne7 {[%clk 0:01:30.2]} 20. Kh1 {[%clk 0:01:53]} 20...
Ng6 {[%clk 0:01:29]} 21. Qg3 {[%clk 0:01:50.1]} 21... Qd6 {[%clk 0:01:20.6]} 22.
Qxd6 {[%clk 0:01:36.6]} 22... Rxd6 {[%clk 0:01:21.5]} 23. Kg2 {[%clk 0:01:37.2]}
23... Bd7 {[%clk 0:01:11.2]} 24. Bxg6 {[%clk 0:01:13.5]} 24... fxg6 {[%clk
0:01:10.3]} 25. h4 {[%clk 0:01:14.4]} 25... Rb6 {[%clk 0:01:04.9]} 26. Rc2
{[%clk 0:01:10]} 26... Bb5 {[%clk 0:01:03.2]} 27. Rf2 {[%clk 0:01:01.1]} 27...
g5 {[%clk 0:01:00.3]} 28. hxg5 {[%clk 0:00:58.7]} 28... hxg5 {[%clk 0:01:01.1]}
29. Ng1 {[%clk 0:00:54.6]} 29... Bd3 {[%clk 0:00:30.2]} 30. Rcd2 {[%clk
0:00:53.6]} 30... Bc4 {[%clk 0:00:30.6]} 31. Nh3 {[%clk 0:00:47.9]} 31... Nh7
{[%clk 0:00:30.8]} 32. Na4 {[%clk 0:00:41.4]} 32... Re6 {[%clk 0:00:28.5]} 33.
Nc5 {[%clk 0:00:40.6]} 33... Re7 {[%clk 0:00:25]} 34. b3 {[%clk 0:00:39.5]}
34... Bb5 {[%clk 0:00:25.5]} 35. a4 {[%clk 0:00:39.7]} 35... Bc6 {[%clk
0:00:26]} 36. Nd3 {[%clk 0:00:37.7]} 36... Be8 {[%clk 0:00:09.3]} 37. Rfe2
{[%clk 0:00:26.9]} 37... Rxe2+ {[%clk 0:00:08.5]} 38. Rxe2 {[%clk 0:00:27.8]}
38... Kf8 {[%clk 0:00:05.6]} 39. Nc5 {[%clk 0:00:23.7]} 39... Bf7 {[%clk
0:00:04.1]} 40. a5 {[%clk 0:00:19.8]} 40... Rc7 {[%clk 0:00:04.1]} 41. Re5
{[%clk 0:00:18.7]} 41... Rc6 {[%clk 0:00:02.5]} 42. Nxg5 {[%clk 0:00:16]} 42...
Nxg5 {[%clk 0:00:02.8]} 43. Rxg5 {[%clk 0:00:16.9]} 43... g6 {[%clk 0:00:01.3]}
44. Re5 {[%clk 0:00:16.9]} 44... Kg7 {[%clk 0:00:01.6]} 45. Nxb7 {[%clk
0:00:12.4]} 45... Rc3 {[%clk 0:00:01.6]} 46. Nc5 {[%clk 0:00:12.1]} 1-0

[Event "Late-Titled-Tuesday-Blitz-January-16-2024"]
[Site "Chess.com"]
[Date "2024.01.16"]
[Round "11"]
[White "Hrant_ChessMood"]
[Black "Polish_fighter3000"]
[Result "0-1"]
[WhiteElo "2907"]
[BlackElo "3097"]
[TimeControl "180+1"]
[EndTime "16:07:09 PST"]
[Termination "Polish_fighter3000 won on time"]

1. Nf3 {[%clk 0:02:54.3]} 1... Nf6 {[%clk 0:03:00.9]} 2. c4 {[%clk 0:02:54]}
2... g6 {[%clk 0:03:01.7]} 3. Nc3 {[%clk 0:02:52.8]} 3... Bg7 {[%clk 0:03:01.2]}
4. e4 {[%clk 0:02:52.9]} 4... d6 {[%clk 0:03:02.1]} 5. d4 {[%clk 0:02:53.4]}
5... O-O {[%clk 0:03:02.2]} 6. Be2 {[%clk 0:02:53.4]} 6... Re8 {[%clk 0:03:01]}
7. O-O {[%clk 0:02:51.5]} 7... Nc6 {[%clk 0:03:01.6]} 8. d5 {[%clk 0:02:48.6]}
8... Nb4 {[%clk 0:03:01.2]} 9. h3 {[%clk 0:02:41.8]} 9... e6 {[%clk 0:03:00.3]}
10. a3 {[%clk 0:02:24.6]} 10... Na6 {[%clk 0:02:57.3]} 11. Be3 {[%clk
0:02:21.7]} 11... exd5 {[%clk 0:02:56.6]} 12. exd5 {[%clk 0:02:20.9]} 12... Rxe3
{[%clk 0:02:52.4]} 13. fxe3 {[%clk 0:02:17.4]} 13... Qe7 {[%clk 0:02:53.3]} 14.
Nd4 {[%clk 0:01:54.1]} 14... Qxe3+ {[%clk 0:02:40.6]} 15. Kh1 {[%clk 0:01:54.1]}
15... Nc5 {[%clk 0:02:34.2]} 16. Rf3 {[%clk 0:01:44.6]} 16... Qe7 {[%clk
0:02:28.6]} 17. Bd3 {[%clk 0:01:34.3]} 17... Ng4 {[%clk 0:01:56.7]} 18. Bf1
{[%clk 0:01:16.9]} 18... Ne3 {[%clk 0:01:40.1]} 19. Qd2 {[%clk 0:01:02.9]} 19...
Bxd4 {[%clk 0:01:38.3]} 20. Qxd4 {[%clk 0:00:42.5]} 20... Nc2 {[%clk 0:01:38.8]}
21. Qd1 {[%clk 0:00:42.7]} 21... Nxa1 {[%clk 0:01:39.4]} 22. Qxa1 {[%clk
0:00:43.6]} 22... a5 {[%clk 0:01:39.8]} 23. Qc1 {[%clk 0:00:38.8]} 23... Bd7
{[%clk 0:01:37.5]} 24. Qf4 {[%clk 0:00:36.5]} 24... a4 {[%clk 0:01:21.2]} 25.
Re3 {[%clk 0:00:31.8]} 25... Qf8 {[%clk 0:01:21.7]} 26. Bd3 {[%clk 0:00:20.8]}
26... Re8 {[%clk 0:01:20.4]} 27. Bc2 {[%clk 0:00:21.3]} 27... Re7 {[%clk
0:01:16.9]} 28. Kg1 {[%clk 0:00:21.2]} 28... Qe8 {[%clk 0:01:16.3]} 29. Rxe7
{[%clk 0:00:20.5]} 29... Qxe7 {[%clk 0:01:16.3]} 30. Kf2 {[%clk 0:00:21.4]}
30... Kg7 {[%clk 0:01:15.7]} 31. h4 {[%clk 0:00:21.9]} 31... Qf6 {[%clk
0:01:14.4]} 32. Qxf6+ {[%clk 0:00:18.7]} 32... Kxf6 {[%clk 0:01:15.3]} 33. Ke3
{[%clk 0:00:19.6]} 33... Ke5 {[%clk 0:01:15.4]} 34. g3 {[%clk 0:00:19.9]} 34...
f5 {[%clk 0:01:12.7]} 35. Ne2 {[%clk 0:00:20.1]} 35... h6 {[%clk 0:01:12.3]} 36.
Nd4 {[%clk 0:00:20.3]} 36... g5 {[%clk 0:01:11.2]} 37. Nf3+ {[%clk 0:00:19.7]}
37... Kf6 {[%clk 0:01:11.6]} 38. hxg5+ {[%clk 0:00:20.6]} 38... hxg5 {[%clk
0:01:11.6]} 39. Nd4 {[%clk 0:00:21.5]} 39... c6 {[%clk 0:00:58.4]} 40. dxc6
{[%clk 0:00:20.6]} 40... bxc6 {[%clk 0:00:59.3]} 41. Ne2 {[%clk 0:00:19]} 41...
Ke5 {[%clk 0:00:50.3]} 42. Nc3 {[%clk 0:00:19.1]} 42... f4+ {[%clk 0:00:51]} 43.
gxf4+ {[%clk 0:00:19.2]} 43... gxf4+ {[%clk 0:00:51.9]} 44. Kd2 {[%clk
0:00:17.1]} 44... Nb3+ {[%clk 0:00:41.9]} 45. Ke1 {[%clk 0:00:11.8]} 45... c5
{[%clk 0:00:40.4]} 46. Bxb3 {[%clk 0:00:03.5]} 46... axb3 {[%clk 0:00:41.3]} 47.
Nb1 {[%clk 0:00:04.3]} 47... Kd4 {[%clk 0:00:35.2]} 48. Nd2 {[%clk 0:00:04.8]}
48... Ke3 {[%clk 0:00:33.2]} 49. Nf1+ {[%clk 0:00:02.6]} 49... Kd3 {[%clk
0:00:32.9]} 50. Nd2 {[%clk 0:00:02.7]} 50... Kc2 {[%clk 0:00:33]} 0-1

[Event "Late-Titled-Tuesday-Blitz-January-16-2024"]
[Site "Chess.com"]
[Date "2024.01.16"]
[Round "11"]
[White "mortngabriel"]
[Black "Smile2005"]
[Result "1-0"]
[WhiteElo "2516"]
[BlackElo "2361"]
[TimeControl "180+1"]
[EndTime "16:07:22 PST"]
[Termination "mortngabriel won on time"]

1. e4 {[%clk 0:03:00.9]} 1... c5 {[%clk 0:02:58.6]} 2. Nf3 {[%clk 0:02:59.7]}
2... e6 {[%clk 0:02:58.3]} 3. d4 {[%clk 0:03:00.1]} 3... cxd4 {[%clk 0:02:59.2]}
4. Nxd4 {[%clk 0:03:00.8]} 4... a6 {[%clk 0:03:00.1]} 5. Bd3 {[%clk 0:03:00.3]}
5... b5 {[%clk 0:03:00.2]} 6. O-O {[%clk 0:02:59.5]} 6... Bb7 {[%clk 0:03:00.6]}
7. a4 {[%clk 0:02:53.7]} 7... b4 {[%clk 0:03:00.1]} 8. a5 {[%clk 0:02:51.1]}
8... Nc6 {[%clk 0:02:59]} 9. Nxc6 {[%clk 0:02:49.2]} 9... Bxc6 {[%clk
0:02:59.9]} 10. Qe2 {[%clk 0:02:45.1]} 10... Bc5 {[%clk 0:02:57.4]} 11. Nd2
{[%clk 0:02:40.9]} 11... Nf6 {[%clk 0:02:55]} 12. Nb3 {[%clk 0:02:39.8]} 12...
Ba7 {[%clk 0:02:51.3]} 13. e5 {[%clk 0:02:31.2]} 13... Nd5 {[%clk 0:02:49]} 14.
Bxa6 {[%clk 0:02:29.3]} 14... O-O {[%clk 0:02:46.3]} 15. Bd3 {[%clk 0:02:24.1]}
15... g6 {[%clk 0:02:42.8]} 16. Bh6 {[%clk 0:02:21.4]} 16... Qh4 {[%clk
0:02:39.7]} 17. Qd2 {[%clk 0:02:02.6]} 17... f6 {[%clk 0:02:10.6]} 18. g3 {[%clk
0:01:32.6]} 18... Nf4 {[%clk 0:01:19.3]} 19. Qxf4 {[%clk 0:01:25.3]} 19... Qh3
{[%clk 0:01:18.6]} 20. Be4 {[%clk 0:01:09.4]} 20... fxe5 {[%clk 0:01:12.3]} 21.
Qh4 {[%clk 0:00:26.8]} 21... Qxh4 {[%clk 0:01:03.4]} 22. gxh4 {[%clk 0:00:27.7]}
22... Bxe4 {[%clk 0:01:03.4]} 23. Bxf8 {[%clk 0:00:27.8]} 23... Rxf8 {[%clk
0:01:02.4]} 24. Nd2 {[%clk 0:00:27.2]} 24... Bc6 {[%clk 0:00:53.8]} 25. h3
{[%clk 0:00:20.7]} 25... Rf4 {[%clk 0:00:47.3]} 26. Rae1 {[%clk 0:00:16.8]}
26... Rxh4 {[%clk 0:00:46.7]} 27. Kh2 {[%clk 0:00:17.2]} 27... Rd4 {[%clk
0:00:41.9]} 28. Nb3 {[%clk 0:00:14.7]} 28... Rc4 {[%clk 0:00:38.9]} 29. Re2
{[%clk 0:00:09.5]} 29... e4 {[%clk 0:00:36.2]} 30. Rd1 {[%clk 0:00:07.1]} 30...
Bb8+ {[%clk 0:00:33.5]} 31. Kg1 {[%clk 0:00:06.7]} 31... e3 {[%clk 0:00:30.8]}
32. Rxe3 {[%clk 0:00:05.8]} 32... Rxc2 {[%clk 0:00:30.5]} 33. Nd4 {[%clk
0:00:05.5]} 33... Rxb2 {[%clk 0:00:26.8]} 34. Nxc6 {[%clk 0:00:05.9]} 34... Bf4
{[%clk 0:00:21]} 35. Rxd7 {[%clk 0:00:05.3]} 35... Bxe3 {[%clk 0:00:17.7]} 36.
fxe3 {[%clk 0:00:05.6]} 36... Ra2 {[%clk 0:00:16.1]} 37. Rb7 {[%clk 0:00:04.3]}
37... Rc2 {[%clk 0:00:10]} 38. a6 {[%clk 0:00:04.7]} 38... Rxc6 {[%clk
0:00:08.8]} 39. a7 {[%clk 0:00:05.2]} 39... Rc1+ {[%clk 0:00:08.8]} 40. Kg2
{[%clk 0:00:05.1]} 40... Ra1 {[%clk 0:00:09.7]} 41. Rb8+ {[%clk 0:00:04.8]}
41... Kg7 {[%clk 0:00:09.9]} 42. a8=Q {[%clk 0:00:05.7]} 42... Rd1 {[%clk
0:00:08.6]} 43. Rb7+ {[%clk 0:00:05.4]} 43... Kh6 {[%clk 0:00:08.7]} 44. Rxb4
{[%clk 0:00:05.7]} 44... Rd2+ {[%clk 0:00:07.9]} 45. Kf3 {[%clk 0:00:06.2]}
45... Kg5 {[%clk 0:00:07.2]} 46. Qe4 {[%clk 0:00:04.3]} 46... e5 {[%clk
0:00:02.2]} 47. Qxe5+ {[%clk 0:00:04.5]} 1-0

[Event "Late-Titled-Tuesday-Blitz-January-16-2024"]
[Site "Chess.com"]
[Date "2024.01.16"]
[Round "11"]
[White "aghasiyevkamal"]
[Black "enriquetejedor"]
[Result "1-0"]
[WhiteElo "2639"]
[BlackElo "2738"]
[TimeControl "180+1"]
[EndTime "16:07:24 PST"]
[Termination "aghasiyevkamal won by checkmate"]

1. e4 {[%clk 0:02:51.5]} 1... d6 {[%clk 0:02:53.1]} 2. d4 {[%clk 0:02:47.4]}
2... e5 {[%clk 0:02:49.5]} 3. Nf3 {[%clk 0:02:41.4]} 3... Qe7 {[%clk 0:02:46.6]}
4. Nc3 {[%clk 0:02:40.1]} 4... c6 {[%clk 0:02:42.4]} 5. a4 {[%clk 0:02:38.9]}
5... a5 {[%clk 0:02:27.1]} 6. h3 {[%clk 0:02:32.3]} 6... Na6 {[%clk 0:02:23.1]}
7. Bc4 {[%clk 0:02:29.5]} 7... h6 {[%clk 0:02:08.5]} 8. Be3 {[%clk 0:02:23.2]}
8... Nf6 {[%clk 0:02:04.5]} 9. Qe2 {[%clk 0:02:15.8]} 9... g6 {[%clk 0:02:01]}
10. O-O {[%clk 0:02:04.9]} 10... Bg7 {[%clk 0:01:55.8]} 11. dxe5 {[%clk
0:01:54.2]} 11... dxe5 {[%clk 0:01:54.2]} 12. Ne1 {[%clk 0:01:45.9]} 12... O-O
{[%clk 0:01:49.8]} 13. Nd3 {[%clk 0:01:44.3]} 13... b6 {[%clk 0:01:39.4]} 14.
Bxb6 {[%clk 0:01:33.6]} 14... Nd7 {[%clk 0:01:20.4]} 15. Bxa5 {[%clk 0:01:02.8]}
15... Kh7 {[%clk 0:01:08]} 16. Qe3 {[%clk 0:00:53.8]} 16... Nf6 {[%clk 0:00:59]}
17. Bxa6 {[%clk 0:00:52.2]} 17... Bxa6 {[%clk 0:00:56.2]} 18. Bb4 {[%clk
0:00:52.2]} 18... Qc7 {[%clk 0:00:53.7]} 19. Bxf8 {[%clk 0:00:51.7]} 19... Rxf8
{[%clk 0:00:54.4]} 20. Rfd1 {[%clk 0:00:40.7]} 20... Nh5 {[%clk 0:00:53.6]} 21.
Nc5 {[%clk 0:00:40.1]} 21... Bc8 {[%clk 0:00:51.8]} 22. a5 {[%clk 0:00:37.5]}
22... f5 {[%clk 0:00:50.6]} 23. a6 {[%clk 0:00:32.7]} 23... f4 {[%clk
0:00:44.4]} 24. Qf3 {[%clk 0:00:32.4]} 24... Qa7 {[%clk 0:00:44.2]} 25. Nb7
{[%clk 0:00:19.9]} 25... Nf6 {[%clk 0:00:42.4]} 26. Qd3 {[%clk 0:00:17.7]} 26...
g5 {[%clk 0:00:35.8]} 27. Qc4 {[%clk 0:00:15.4]} 27... g4 {[%clk 0:00:33.3]} 28.
Qc5 {[%clk 0:00:15.5]} 28... Qb8 {[%clk 0:00:29.9]} 29. hxg4 {[%clk 0:00:15]}
29... f3 {[%clk 0:00:26.5]} 30. a7 {[%clk 0:00:14.3]} 30... Qa8 {[%clk
0:00:23.8]} 31. Nd6 {[%clk 0:00:13.1]} 31... Bxg4 {[%clk 0:00:20.9]} 32. g3
{[%clk 0:00:08]} 32... Rd8 {[%clk 0:00:20.6]} 33. Ra6 {[%clk 0:00:07.9]} 33...
Rxd6 {[%clk 0:00:19.8]} 34. Qxd6 {[%clk 0:00:07.7]} 34... Qe8 {[%clk 0:00:20.2]}
35. a8=Q {[%clk 0:00:07.2]} 35... Qh5 {[%clk 0:00:20.1]} 36. Qd3 {[%clk
0:00:05.8]} 36... Bh3 {[%clk 0:00:19.2]} 37. Ra7 {[%clk 0:00:03.4]} 37... Bg2
{[%clk 0:00:15.2]} 38. Rxg7+ {[%clk 0:00:03.9]} 38... Kxg7 {[%clk 0:00:15.9]}
39. Qd7+ {[%clk 0:00:04.2]} 39... Nxd7 {[%clk 0:00:05.7]} 40. Rxd7+ {[%clk
0:00:04.3]} 40... Kf6 {[%clk 0:00:05.1]} 41. Qf8+ {[%clk 0:00:04.4]} 41... Kg5
{[%clk 0:00:02.8]} 42. Rg7+ {[%clk 0:00:03.6]} 42... Qg6 {[%clk 0:00:03.1]} 43.
Rxg6+ {[%clk 0:00:03.8]} 43... Kxg6 {[%clk 0:00:04]} 44. Qg8+ {[%clk 0:00:04.2]}
44... Kf6 {[%clk 0:00:03.7]} 45. Nd1 {[%clk 0:00:05.1]} 45... Bh3 {[%clk
0:00:03.5]} 46. Ne3 {[%clk 0:00:06]} 46... Be6 {[%clk 0:00:03.9]} 47. Qf8+
{[%clk 0:00:06.2]} 47... Kg6 {[%clk 0:00:02.6]} 48. Qxf3 {[%clk 0:00:07.1]}
48... h5 {[%clk 0:00:02.1]} 49. Nf5 {[%clk 0:00:07.4]} 49... Bc4 {[%clk
0:00:01.9]} 50. Nh4+ {[%clk 0:00:07.3]} 50... Kh6 {[%clk 0:00:01.9]} 51. Qf6+
{[%clk 0:00:07.5]} 51... Kh7 {[%clk 0:00:02.4]} 52. Nf5 {[%clk 0:00:07.8]} 52...
Kg8 {[%clk 0:00:02]} 53. Qg7# {[%clk 0:00:08.1]} 1-0